bitfinex/quotes_ETHUSD_20250630
["timestamp","ask_amount","ask_price","bid_price","bid_amount"]
[1751319369098,0.02,2500.3,2500.2,11.0273]
[1751319369511,0.02,2500.3,2500.2,15.54708002]
[1751319369718,0.02,2500.3,2500.2,18.74668887]
[1751319370022,0.02,2500.3,2500.2,27.88777448]
[1751319372709,0.1992,2501.0,2500.8,7.7336111]
[1751319373020,0.2192,2501.2,2500.8,7.7336111]
[1751319373231,0.02,2501.2,2501.0,0.55]
[1751319373402,4.01808648,2501.2,2501.0,0.55]
[1751319373592,0.02,2501.2,2501.0,0.55]
[1751319373994,4.01813692,2501.2,2501.0,0.55]
[1751319374523,0.02,2501.2,2501.1,7.7336111]
[1751319374827,0.02,2501.2,2501.1,8.5148111]
[1751319375527,4.01808092,2501.2,2501.1,8.5148111]
[1751319375896,4.01808092,2501.2,2501.1,8.70854189]
[1751319378026,0.02,2501.2,2501.1,8.70854189]
[1751319378730,4.01808092,2501.2,2501.1,8.70854189]
[1751319378929,4.01808092,2501.2,2501.1,0.55]
[1751319388847,3.99840063,2501.0,2500.9,0.1992]
[1751319389152,3.99840063,2501.0,2500.9,0.7492]
[1751319391963,3.9987204,2500.8,2500.7,10.19399007]
[1751319392170,3.9987204,2500.8,2500.7,10.74399007]
[1751319392726,3.9987204,2500.8,2500.7,0.74399007]
[1751319394138,3.99859834,2500.9,2500.7,0.74399007]
[1751319394448,3.9987204,2500.8,2500.7,0.74399007]
[1751319397562,3.99864853,2500.9,2500.7,0.74399007]
[1751319398765,4.01847016,2501.0,2500.7,0.74399007]
[1751319399263,0.02,2501.0,2500.9,17.7336111]
[1751319399557,0.02,2501.0,2500.9,17.9328111]
[1751319399948,0.02,2501.2,2500.9,17.9328111]
[1751319400165,0.02,2501.2,2501.0,10.55]
[1751319400529,0.02,2501.2,2501.0,1.3506]
[1751319400745,0.02,2501.2,2501.0,13.62381019]
[1751319404262,4.79931513,2501.6,2501.0,13.62381019]
[1751319404263,4.01719078,2501.8,2501.1,21.73174484]
[1751319404431,0.2192,2501.8,2501.5,10.55]
[1751319406454,0.02,2501.8,2501.5,10.55]
[1751319406771,0.02,2501.8,2501.6,1.3699]
[1751319411342,0.02,2501.8,2501.6,17.9249]
[1751319411569,0.02,2501.8,2501.6,19.06615347]
[1751319412476,0.02,2501.8,2501.6,12.51115347]
[1751319414375,0.02,2501.8,2501.6,16.5085951]
[1751319416475,0.02,2501.8,2501.6,17.2936951]
[1751319418678,0.02,2502.1,2502.0,0.55]
[1751319419053,0.02,2502.1,2502.0,0.7492]
[1751319420682,0.02,2502.1,2502.0,3.32828561]
[1751319424176,0.02,2502.1,2502.0,13.32828561]
[1751319424771,0.02,2502.1,2502.0,0.1992]
[1751319424983,3.99712207,2501.8,2501.7,10.1992]
[1751319425302,3.99712207,2501.8,2501.7,10.7492]
[1751319425483,3.99712207,2501.8,2501.7,17.3012]
[1751319425976,4.75425492,2501.9,2501.8,0.55]
[1751319427582,3.99712207,2501.8,2501.7,0.7492]
[1751319428784,6.07045033,2501.8,2501.7,0.7492]
[1751319428990,6.07045033,2501.8,2501.7,0.55]
[1751319429661,4.79562207,2501.8,2501.7,0.55]
[1751319438305,3.99712207,2501.8,2501.7,0.55]
[1751319439606,4.01671917,2502.1,2501.8,0.55]
[1751319439901,0.02,2502.1,2501.8,0.55]
[1751319440103,0.02,2502.1,2502.0,0.55]
[1751319440603,0.02,2502.1,2502.0,10.55]
[1751319443894,0.02,2502.1,2502.0,11.3216]
[1751319444284,0.09917559,2502.5,2502.4,4.54616368]
[1751319444506,0.02,2503.0,2502.8,0.55]
[1751319444698,0.02,2503.0,2502.9,17.1836111]
[1751319444896,0.02,2503.0,2502.7,0.7576]
[1751319444897,0.02,2503.0,2502.7,7.9412111]
[1751319445204,3.99560042,2502.8,2502.5,10.55]
[1751319445520,3.99575851,2502.7,2502.5,10.55]
[1751319445815,3.99584432,2502.6,2502.5,10.55]
[1751319446116,3.99584432,2502.6,2502.4,10.55]
[1751319446292,3.99600399,2502.5,2502.4,10.55]
[1751319446501,3.99600399,2502.5,2502.4,2.39199755]
[1751319446722,3.99632338,2502.3,2502.2,2.39199755]
[1751319447019,5.27832249,2502.3,2502.2,2.39199755]
[1751319447515,4.8284623,2501.9,2501.8,0.02]
[1751319450342,4.8284623,2501.9,2501.8,0.39372741]
[1751319456527,4.8284623,2501.9,2501.8,0.02]
[1751319457098,4.8384623,2501.9,2501.8,0.02]
[1751319457326,6.37689141,2501.9,2501.8,0.02]
[1751319460816,6.37689141,2501.9,2501.8,0.02]
[1751319463419,4.0069623,2501.9,2501.8,0.02]
[1751319464529,10.7551623,2501.9,2501.8,0.02]
[1751319472647,11.5107623,2501.9,2501.8,0.02]
[1751319475139,4.9757623,2501.9,2501.8,0.02]
[1751319475446,11.5247623,2501.9,2501.8,0.02]
[1751319475645,13.27832141,2501.9,2501.8,0.02]
[1751319483543,13.27832141,2501.9,2501.8,1e-08]
[1751319490462,6.72932141,2501.9,2501.8,1e-08]
[1751319490760,10.7541623,2501.9,2501.8,1e-08]
[1751319493136,4.2061623,2501.9,2501.8,1e-08]
[1751319493465,10.7531623,2501.9,2501.8,1e-08]
[1751319498769,4.2061623,2501.9,2501.8,1e-08]
[1751319498959,10.7521623,2501.9,2501.8,1e-08]
[1751319501870,11.5699623,2501.9,2501.8,1e-08]
[1751319502563,10.7521623,2501.9,2501.8,1e-08]
[1751319507973,4.2061623,2501.9,2501.8,0.77390001]
[1751319508178,10.7511623,2501.9,2501.8,1e-08]
[1751319511977,13.03786141,2501.9,2501.8,1e-08]
[1751319522100,10.7511623,2501.9,2501.8,1e-08]
[1751319525211,10.7511623,2501.9,2501.8,0.74999251]
[1751319526210,10.7511623,2501.9,2501.8,0.37499626]
[1751319526989,10.7491623,2501.9,2501.8,0.37499626]
[1751319535103,4.2061623,2501.9,2501.8,0.37499626]
[1751319535413,10.7491623,2501.9,2501.8,0.37499626]
[1751319538418,10.7491623,2501.9,2501.8,0.75001383]
[1751319540325,10.7491623,2501.9,2501.8,0.37501758]
[1751319542231,10.7491623,2501.9,2501.8,1e-08]
[1751319546290,10.7491623,2501.9,2501.6,0.02]
[1751319546291,12.22376141,2501.9,2501.6,0.02]
[1751319546497,3.99728184,2501.7,2501.6,0.02]
[1751319546792,10.53828184,2501.7,2501.6,0.02]
[1751319549542,3.99728184,2501.7,2501.6,0.02]
[1751319549733,10.53828184,2501.7,2501.6,0.02]
[1751319549928,12.53997837,2501.7,2501.6,0.02]
[1751319555747,13.33627837,2501.7,2501.6,0.02]
[1751319555920,3.99840063,2501.0,2500.8,3.19919567]
[1751319556112,3.9987204,2500.8,2500.7,3.21919567]
[1751319556311,3.9987204,2500.8,2500.7,0.02]
[1751319560055,3.99865502,2500.9,2500.7,1.5867]
[1751319560258,3.99865502,2500.9,2500.8,1.71067]
[1751319561463,3.99865502,2500.9,2500.8,0.55]
[1751319562264,3.9987204,2500.8,2500.7,0.2192]
[1751319562558,3.9987204,2500.8,2500.7,0.7692]
[1751319564777,11.3706204,2500.8,2500.7,0.02]
[1751319565066,12.90754794,2500.8,2500.7,0.02]
[1751319565435,12.07764794,2500.8,2500.7,0.02]
[1751319565636,3.9987204,2500.8,2500.7,0.02]
[1751319566234,10.54061763,2500.9,2500.7,0.57]
[1751319568437,4.82819653,2501.7,2500.9,0.55]
[1751319568664,4.82819653,2501.7,2501.0,7.16791728]
[1751319568665,3.99823888,2501.2,2501.0,7.16791728]
[1751319568975,3.99824077,2501.1,2501.0,7.16791728]
[1751319569150,3.99816977,2501.2,2501.0,7.16791728]
[1751319569778,3.99824077,2501.1,2501.0,7.16791728]
[1751319572387,3.99802941,2501.3,2501.1,0.55]
[1751319572585,3.99808092,2501.2,2501.1,0.55]
[1751319573679,3.99800285,2501.3,2501.1,0.55]
[1751319576487,3.99800285,2501.3,2501.2,1.3802]
[1751319577180,3.9981481,2501.2,2501.0,1.0294]
[1751319577350,6.7402,2501.4,2501.0,11.0294]
[1751319577547,3.99824077,2501.1,2501.0,11.5794]
[1751319580103,3.99816833,2501.2,2501.0,11.5794]
[1751319589570,3.99802281,2501.3,2501.0,11.5794]
[1751319589794,3.99809162,2501.2,2501.0,11.5794]
[1751319590399,3.99824077,2501.1,2501.0,11.5794]
[1751319592069,3.99824077,2501.1,2501.0,10.7492]
[1751319592405,3.99824077,2501.1,2501.0,10.1992]
[1751319592603,3.99824077,2501.1,2501.0,10.0]
[1751319592782,3.99840063,2501.0,2500.9,0.1992]
[1751319593179,3.9987204,2500.8,2500.7,0.02]
[1751319596198,4.7693204,2500.8,2500.7,0.02]
[1751319598042,11.3083204,2500.8,2500.7,0.02]
[1751319598221,11.5075204,2500.8,2500.7,0.02]
[1751319598526,13.45797243,2500.8,2500.7,0.02]
[1751319600562,3.99888031,2500.7,2500.6,1e-08]
[1751319600737,10.53788031,2500.7,2500.6,1e-08]
[1751319601594,3.99888031,2500.7,2500.6,1e-08]
[1751319602302,3.99888031,2500.7,2500.6,7.71791729]
[1751319602690,3.99878286,2500.8,2500.6,9.58815902]
[1751319603422,3.99854309,2501.0,2500.7,0.55]
[1751319603629,3.99854309,2501.0,2500.7,0.7492]
[1751319604006,3.99854309,2501.0,2500.8,0.7574]
[1751319604711,4.19753485,2501.1,2500.9,0.55]
[1751319604913,3.99833485,2501.1,2500.9,7.91711728]
[1751319606850,0.819,2501.6,2501.1,0.55]
[1751319607033,3.99782822,2501.4,2501.3,7.16791728]
[1751319607818,3.99764989,2501.5,2501.4,0.55]
[1751319608654,3.99760143,2501.5,2501.4,0.55]
[1751319609523,3.9975153,2501.6,2501.4,0.55]
[1751319611236,3.99760143,2501.5,2501.4,0.55]
[1751319613858,3.99760143,2501.5,2501.1,7.16791728]
[1751319613859,3.99807427,2501.3,2501.1,7.16791728]
[1751319614180,3.99805394,2501.3,2501.1,7.36711728]
[1751319614380,3.99808092,2501.2,2501.1,0.7492]
[1751319614565,3.99824077,2501.1,2501.0,10.0]
[1751319616988,10.53624077,2501.1,2501.0,10.0]
[1751319623884,3.99824077,2501.1,2501.0,10.0]
[1751319624089,10.53624077,2501.1,2501.0,10.0]
[1751319630792,3.99840063,2501.0,2500.9,0.1992]
[1751319631090,3.9987204,2500.8,2500.7,7.16791728]
[1751319631293,3.99887633,2500.8,2500.7,0.7492]
[1751319631489,3.99887633,2500.8,2500.7,10.7492]
[1751319631993,3.99887633,2500.8,2500.7,0.7492]
[1751319632298,3.99887633,2500.8,2500.7,0.1992]
[1751319637495,6.537,2500.8,2500.7,0.1992]
[1751319642215,10.5357204,2500.8,2500.7,0.1992]
[1751319642813,6.537,2500.8,2500.7,0.1992]
[1751319643209,3.9983522,2501.1,2500.8,1.3775]
[1751319643413,6.537,2501.0,2500.8,18.54541728]
[1751319643595,6.537,2501.0,2500.9,0.7492]
[1751319645304,3.99824114,2501.1,2500.9,0.7492]
[1751319645605,6.537,2501.0,2500.9,0.7492]
[1751319647231,3.99811342,2501.2,2500.9,0.7492]
[1751319647433,6.537,2501.0,2500.9,0.7492]
[1751319652219,4.19719913,2501.3,2500.9,0.7492]
[1751319652418,6.536,2501.2,2500.9,0.7492]
[1751319653322,10.53414192,2501.2,2500.9,0.7492]
[1751319653519,6.536,2501.1,2500.9,0.7492]
[1751319656556,3.99814192,2501.2,2500.9,0.7492]
[1751319656854,6.536,2501.1,2500.9,0.7492]
[1751319658048,4.97102764,2501.3,2500.9,0.7492]
[1751319658249,10.5330886,2501.2,2500.9,0.7492]
[1751319658552,3.9980886,2501.2,2500.9,0.7492]
[1751319658746,6.535,2501.1,2501.0,7.16791728]
[1751319660859,6.535,2501.1,2500.9,10.7492]
[1751319664268,6.535,2501.1,2500.9,10.1992]
[1751319670865,0.1992,2501.3,2500.9,10.1992]
[1751319671034,6.534,2501.2,2501.0,0.55]
[1751319672179,4.19712343,2501.3,2501.0,0.55]
[1751319672470,6.534,2501.2,2501.1,8.74991728]
[1751319672639,6.20276758,2501.6,2501.1,8.19991728]
[1751319672965,6.534,2501.5,2501.1,8.19991728]
[1751319673278,2.006,2501.6,2501.2,10.55]
[1751319673486,6.534,2501.4,2501.3,0.7492]
[1751319674679,6.534,2501.6,2501.4,0.55]
[1751319674881,6.534,2501.6,2501.4,7.91711728]
[1751319675091,3.99720241,2501.8,2501.4,7.91711728]
[1751319675385,6.533,2501.7,2501.4,7.91711728]
[1751319676267,5.02024581,2501.9,2501.5,10.0]
[1751319676475,6.533,2501.8,2501.5,10.7812]
[1751319677086,4.20624581,2501.9,2501.5,10.7812]
[1751319677087,6.533,2501.7,2501.5,10.7812]
[1751319677281,6.533,2501.7,2501.5,13.18082661]
[1751319678672,6.533,2501.7,2501.5,10.7812]
[1751319678864,6.533,2501.7,2501.6,2.35294161]
[1751319679681,6.533,2501.8,2501.7,0.55]
[1751319679884,6.533,2501.8,2501.5,12.39962661]
[1751319680065,3.99744163,2501.6,2501.5,0.1992]
[1751319680261,3.99776125,2501.4,2501.3,10.55]
[1751319680460,3.99776125,2501.4,2501.3,10.7492]
[1751319680461,10.52976125,2501.4,2501.3,10.7492]
[1751319680787,3.99824077,2501.1,2501.0,3.19919567]
[1751319680992,3.99824077,2501.1,2500.7,4.75111107]
[1751319680993,3.9987204,2500.8,2500.7,3.19919567]
[1751319681174,3.9987204,2500.8,2500.4,0.02]
[1751319681175,3.9990661,2500.6,2500.4,0.02]
[1751319681486,3.9990661,2500.6,2499.3,8.00902214]
[1751319681487,4.00048005,2499.7,2499.4,0.01]
[1751319681654,4.00048005,2499.7,2499.2,0.01]
[1751319681655,4.00112031,2499.3,2499.2,0.01]
[1751319681855,6.3097216,2499.3,2499.2,0.01]
[1751319682181,0.2,2499.8,2499.2,14.01120852]
[1751319682350,0.9916,2500.0,2499.7,0.55]
[1751319682553,7.3456,2500.0,2499.9,0.55]
[1751319682954,6.554,2500.0,2499.9,0.55]
[1751319686154,0.7842,2500.5,2499.9,11.34179173]
[1751319686355,8.7582,2500.4,2499.9,10.2]
[1751319686586,0.8186,2500.0,2499.0,7.17791728]
[1751319686758,4.00079881,2499.6,2499.2,0.21]
[1751319686959,4.20079881,2499.6,2499.2,0.21]
[1751319687153,6.569,2499.5,2499.2,7.37791728]
[1751319688772,0.2,2499.6,2499.3,10.55]
[1751319689002,2.005,2500.2,2499.7,0.55]
[1751319689186,6.576,2500.3,2499.9,17.71791728]
[1751319689381,6.576,2500.3,2500.1,0.55]
[1751319694110,6.576,2500.3,2500.0,0.55]
[1751319694307,6.576,2500.3,2500.1,0.1992]
[1751319695184,3.99968002,2500.2,2500.1,0.1992]
[1751319695410,4.0,2500.0,2499.9,0.75]
[1751319695589,10.572,2500.0,2499.9,0.75]
[1751319696613,4.0006401,2499.6,2499.3,7.16791728]
[1751319696813,4.00112031,2499.3,2499.2,0.01]
[1751319697516,4.00101963,2499.4,2499.2,0.01]
[1751319697713,2.005,2500.1,2499.4,10.55]
[1751319697887,10.58508782,2500.0,2499.7,7.36791728]
[1751319698288,6.585,2500.0,2499.7,7.36791728]
[1751319699289,6.585,2500.0,2499.8,0.55]
[1751319699493,6.585,2500.0,2499.9,0.75]
[1751319702293,10.585,2500.0,2499.9,0.75]
[1751319705926,4.0,2500.0,2499.9,0.75]
[1751319706110,6.58,2500.0,2499.9,0.75]
[1751319706730,10.58,2500.0,2499.9,0.75]
[1751319714348,0.1992,2500.3,2500.0,0.55]
[1751319714554,6.571,2500.3,2500.2,7.16791728]
[1751319714714,6.571,2500.3,2500.2,17.71791728]
[1751319714914,6.571,2500.3,2500.2,17.91711728]
[1751319715308,10.57052005,2500.3,2500.2,10.7492]
[1751319715838,10.56952005,2500.3,2500.2,10.7492]
[1751319723827,6.57,2500.3,2500.2,10.7492]
[1751319724749,10.56952005,2500.3,2500.2,10.7492]
[1751319731264,6.57,2500.3,2500.2,10.7492]
[1751319731842,6.57,2500.3,2500.2,11.5471]
[1751319733682,10.56952005,2500.3,2500.2,10.7492]
[1751319738859,6.57,2500.3,2500.2,10.7492]
[1751319741258,10.56952005,2500.3,2500.2,10.7492]
[1751319743700,12.808618,2500.3,2500.2,0.1992]
[1751319743905,4.0006401,2499.6,2499.5,4.76]
[1751319744088,10.5586401,2499.6,2499.5,5.51]
[1751319744283,10.5586401,2499.6,2499.5,4.96]
[1751319744505,10.5586401,2499.6,2499.5,14.96]
[1751319744703,10.5586401,2499.6,2499.5,4.96]
[1751319745094,10.5586401,2499.6,2499.5,0.2]
[1751319747103,4.00096023,2499.4,2499.3,10.75]
[1751319747277,4.00112031,2499.3,2499.2,0.01]
[1751319747480,4.82032031,2499.3,2499.2,0.01]
[1751319747679,13.39932031,2499.3,2499.2,0.01]
[1751319748107,6.83732031,2499.3,2499.2,0.01]
[1751319748274,13.40132031,2499.3,2499.2,0.01]
[1751319748481,4.20098897,2499.4,2499.2,0.01]
[1751319748682,2.017,2499.8,2499.3,7.91791728]
[1751319749003,10.57357123,2499.7,2499.3,7.91791728]
[1751319749208,4.00064518,2499.6,2499.3,7.91791728]
[1751319749417,6.576,2499.5,2499.3,7.91791728]
[1751319750509,4.00034834,2499.8,2499.3,7.91791728]
[1751319750698,13.61006558,2500.0,2499.7,0.55]
[1751319750888,4.00006558,2500.0,2499.7,0.75]
[1751319751089,6.578,2499.9,2499.7,0.75]
[1751319752910,6.578,2499.9,2499.7,10.75]
[1751319753714,6.01692958,2500.1,2499.7,10.75]
[1751319754013,6.576,2499.9,2499.7,10.75]
[1751319758116,4.81926976,2500.2,2499.7,10.75]
[1751319758318,6.571,2500.1,2499.7,10.75]
[1751319758910,6.571,2500.1,2499.7,13.34192634]
[1751319759301,10.57084535,2500.1,2499.7,13.34192634]
[1751319760298,3.99984535,2500.1,2499.9,7.16791728]
[1751319760498,6.568,2500.0,2499.9,7.16791728]
[1751319760821,10.568,2500.0,2499.9,7.16791728]
[1751319761189,4.00023707,2499.9,2499.7,7.91791728]
[1751319761390,4.00090262,2499.5,2499.2,0.01]
[1751319761600,10.56803078,2499.4,2499.2,0.21]
[1751319761801,10.57503078,2499.4,2499.3,0.55]
[1751319762402,10.57503078,2499.4,2499.2,0.21]
[1751319762602,10.57503078,2499.4,2499.3,0.55]
[1751319762816,10.57503078,2499.4,2499.2,10.21]
[1751319763019,10.57503078,2499.4,2499.3,0.55]
[1751319772543,4.00103078,2499.4,2499.3,0.55]
[1751319772718,10.56903078,2499.4,2499.3,0.55]
[1751319775415,4.00112031,2499.3,2499.2,0.21]
[1751319775956,4.00112031,2499.3,2499.2,0.76]
[1751319777555,10.56312031,2499.3,2499.2,0.76]
[1751319782864,4.00112031,2499.3,2499.2,0.76]
[1751319783055,10.55612031,2499.3,2499.2,0.76]
[1751319789486,10.55612031,2499.3,2499.0,7.17791728]
[1751319789487,4.00224125,2498.6,2498.5,0.01]
[1751319789697,4.75374125,2498.6,2498.5,0.01]
[1751319789880,11.54174125,2498.6,2498.5,0.01]
[1751319793289,10.78724125,2498.6,2498.5,0.01]
[1751319796098,10.58524125,2498.6,2498.5,0.01]
[1751319804505,10.58524125,2498.6,2498.5,0.56]
[1751319824333,4.00224125,2498.6,2498.5,0.56]
[1751319824632,4.00203944,2498.8,2498.5,0.76]
[1751319824838,4.00216671,2498.7,2498.5,0.76]
[1751319825017,10.56516671,2498.7,2498.5,0.76]
[1751319825637,4.00224125,2498.6,2498.5,0.76]
[1751319827341,10.56519248,2498.7,2498.5,0.76]
[1751319827639,4.00224125,2498.6,2498.5,0.76]
[1751319830714,12.81756363,2498.6,2498.5,0.01]
[1751319830915,12.01696363,2498.6,2498.5,0.01]
[1751319831115,12.01696363,2498.6,2498.5,0.56]
[1751319833339,10.55624125,2498.6,2498.5,0.56]
[1751319833537,2.026,2498.7,2498.5,0.56]
[1751319833853,4.00209221,2498.7,2498.5,0.56]
[1751319834032,0.7811,2499.0,2498.5,0.01]
[1751319834246,10.55586082,2498.9,2498.7,0.55]
[1751319834544,4.00192092,2498.8,2498.7,0.55]
[1751319834918,4.00192092,2498.8,2498.7,0.75]
[1751319840254,2.026,2499.1,2498.7,11.556]
[1751319840553,2.026,2499.1,2499.0,0.75]
[1751319840554,6.02744408,2499.1,2499.0,0.75]
[1751319841056,12.57944408,2499.1,2499.0,0.75]
[1751319841252,4.00144408,2499.1,2499.0,0.75]
[1751319841440,10.55344408,2499.1,2499.0,0.75]
[1751319841641,6.01636426,2499.2,2499.1,0.55]
[1751319841843,2.015,2499.2,2499.1,1.3153]
[1751319842145,2.015,2499.2,2499.1,2.18362173]
[1751319842146,6.552,2499.2,2499.1,2.18362173]
[1751319842354,4.00112867,2499.3,2499.1,1.41832173]
[1751319842556,6.552,2499.2,2499.1,0.55]
[1751319844764,10.5532804,2499.2,2499.1,0.55]
[1751319846831,6.553,2499.2,2499.1,0.55]
[1751319849771,10.5542804,2499.2,2499.1,0.55]
[1751319850457,6.553,2499.2,2499.1,0.55]
[1751319850757,6.553,2499.2,2498.5,0.01]
[1751319850758,0.7691,2499.0,2498.5,0.01]
[1751319850947,4.77134125,2498.6,2498.5,0.01]
[1751319851262,11.33034125,2498.6,2498.5,0.01]
[1751319852034,4.00224125,2498.6,2498.5,0.01]
[1751319852236,10.56324125,2498.6,2498.5,0.01]
[1751319855271,6.561,2498.6,2498.5,0.01]
[1751319855450,10.56324125,2498.6,2498.5,0.01]
[1751319858968,6.561,2498.6,2498.5,0.01]
[1751319859739,10.56324125,2498.6,2498.5,0.01]
[1751319860865,10.56324125,2498.6,2498.5,0.56]
[1751319861242,6.561,2498.6,2498.5,7.72791728]
[1751319861468,6.561,2498.6,2498.5,9.52070901]
[1751319862376,6.561,2498.6,2498.5,7.72791728]
[1751319865980,10.56324125,2498.6,2498.5,7.72791728]
[1751319866181,11.31464125,2498.6,2498.5,7.72791728]
[1751319868082,10.56324125,2498.6,2498.5,7.72791728]
[1751319868382,6.561,2498.6,2498.5,7.72791728]
[1751319868963,6.561,2498.6,2498.5,17.72791728]
[1751319871687,4.00214423,2498.7,2498.5,17.72791728]
[1751319871890,6.552,2498.7,2498.6,0.75]
[1751319874287,4.00200966,2498.8,2498.7,0.55]
[1751319874491,10.55400966,2498.8,2498.7,0.55]
[1751319878758,4.00224125,2498.6,2498.5,0.01]
[1751319878964,11.57694125,2498.6,2498.5,0.01]
[1751319884393,5.02494125,2498.6,2498.5,0.01]
[1751319884593,13.59194125,2498.6,2498.5,0.01]
[1751319884794,7.35034215,2498.6,2498.5,0.01]
[1751319884992,15.91734215,2498.6,2498.5,0.01]
[1751319885193,15.91834215,2498.6,2498.5,0.01]
[1751319890009,7.35034215,2498.6,2498.5,0.01]
[1751319890313,15.91834215,2498.6,2498.5,0.01]
[1751319892207,7.35034215,2498.6,2498.5,0.01]
[1751319892415,15.91834215,2498.6,2498.5,0.01]
[1751319893289,7.35034215,2498.6,2498.5,0.01]
[1751319893488,15.91834215,2498.6,2498.5,0.01]
[1751319893693,4.00224125,2498.6,2498.5,1.3116]
[1751319893895,2.015,2498.8,2498.6,0.55]
[1751319894113,2.015,2498.8,2498.7,0.75]
[1751319894286,8.568,2498.8,2498.7,0.75]
[1751319894625,12.56992092,2498.8,2498.7,0.75]
[1751319894918,4.00208108,2498.7,2498.6,17.16791728]
[1751319897320,12.56999204,2498.8,2498.6,17.71791728]
[1751319897500,12.56999204,2498.8,2498.6,17.91791728]
[1751319899818,10.55382735,2498.9,2498.7,0.55]
[1751319900120,6.552,2498.8,2498.7,0.55]
[1751319902299,10.55392092,2498.8,2498.7,0.55]
[1751319904140,6.552,2498.8,2498.7,0.55]
[1751319905926,10.55392092,2498.8,2498.7,0.55]
[1751319907347,4.00192092,2498.8,2498.7,0.55]
[1751319907546,6.551,2498.8,2498.7,0.55]
[1751319907838,10.55292092,2498.8,2498.7,0.55]
[1751319908043,6.551,2498.8,2498.7,0.55]
[1751319908753,4.00208108,2498.7,2498.6,17.91791728]
[1751319909635,4.00224125,2498.6,2498.5,0.01]
[1751319909854,10.55324125,2498.6,2498.5,0.01]
[1751319910050,4.00240144,2498.5,2498.4,0.2]
[1751319910352,4.00297049,2498.2,2498.1,0.2]
[1751319910551,4.00304231,2498.1,2498.0,7.16791728]
[1751319910751,4.00304231,2498.1,2498.0,7.36791728]
[1751319910918,4.00304231,2498.1,2498.0,7.91791728]
[1751319911654,4.00304231,2498.1,2498.0,7.36791728]
[1751319911857,4.00304231,2498.1,2498.0,7.91791728]
[1751319912036,4.00304231,2498.1,2498.0,7.36791728]
[1751319912656,4.00304231,2498.1,2498.0,7.91791728]
[1751319913245,4.00304231,2498.1,2497.7,8.19479316]
[1751319913424,10.55429513,2498.0,2497.8,10.0]
[1751319914462,4.00336282,2497.9,2497.8,10.55]
[1751319915894,4.0035231,2497.8,2497.7,7.36791728]
[1751319916059,10.5545231,2497.8,2497.7,7.91791728]
[1751319917377,10.5545231,2497.8,2497.7,7.36791728]
[1751319918190,10.5555231,2497.8,2497.7,8.14231728]
[1751319918389,10.5555231,2497.8,2497.7,0.2]
[1751319918590,4.00368338,2497.7,2497.6,17.73791728]
[1751319918887,4.00368338,2497.7,2497.6,17.93791728]
[1751319921865,10.55568338,2497.7,2497.6,17.93791728]
[1751319926661,4.00368338,2497.7,2497.6,17.93791728]
[1751319926965,10.55568338,2497.7,2497.6,17.93791728]
[1751319929765,4.00361385,2497.8,2497.6,18.72121728]
[1751319929990,6.552,2497.7,2497.6,18.72121728]
[1751319931503,10.55568338,2497.7,2497.6,18.72121728]
[1751319931874,6.552,2497.7,2497.6,18.52121728]
[1751319932670,4.00359464,2497.8,2497.6,18.52121728]
[1751319932892,6.552,2497.7,2497.6,18.52121728]
[1751319933278,10.55568338,2497.7,2497.6,17.73791728]
[1751319933970,4.00512656,2496.8,2496.4,9.55130311]
[1751319934183,30.0,2497.6,2496.0,3.98694952]
[1751319934184,14.00624974,2496.1,2496.0,3.98694952]
[1751319934499,4.00704201,2495.7,2495.4,0.2973208]
[1751319934666,4.00721298,2495.5,2495.4,7.16791728]
[1751319934867,3.52582767,2495.7,2495.4,7.16791728]
[1751319935070,4.00624278,2496.2,2494.7,4.20449692]
[1751319935071,4.00608925,2496.2,2495.3,0.7833]
[1751319935268,4.00737356,2495.4,2495.3,0.7833]
[1751319935488,4.0057683,2496.4,2495.3,0.7833]
[1751319935678,4.0067313,2495.8,2495.7,7.16791728]
[1751319935879,10.6887313,2495.8,2495.7,7.16791728]
[1751319936094,4.0067313,2495.8,2495.7,7.16791728]
[1751319936372,10.6887313,2495.8,2495.7,7.16791728]
[1751319936807,6.682,2495.8,2495.7,7.16791728]
[1751319937096,4.00614557,2496.2,2495.7,7.88470901]
[1751319937268,6.68,2496.1,2495.4,10.0]
[1751319937474,6.683,2496.0,2495.8,7.16791728]
[1751319939594,6.684,2495.9,2495.8,7.16791728]
[1751319940098,6.684,2495.9,2495.8,17.16791728]
[1751319940308,6.68,2496.0,2495.9,14.82755138]
[1751319940481,6.678,2496.2,2496.0,6.60661682]
[1751319940812,6.678,2496.3,2496.1,7.16791728]
[1751319941016,6.678,2496.3,2496.1,11.17409386]
[1751319941333,0.771,2496.9,2496.2,4.00607975]
[1751319941486,6.678,2496.8,2496.4,7.16791728]
[1751319941683,6.678,2496.7,2496.4,7.16791728]
[1751319941883,6.678,2496.7,2496.4,7.36791728]
[1751319942103,0.2,2496.9,2496.5,1.3711]
[1751319942308,6.678,2497.0,2496.8,7.36791728]
[1751319942506,0.971,2497.2,2496.8,7.36791728]
[1751319942704,4.97551089,2497.2,2496.8,0.2]
[1751319942987,6.677,2497.1,2496.8,0.2]
[1751319943809,4.97550916,2497.2,2496.8,0.2]
[1751319944028,6.677,2497.0,2496.8,0.2]
[1751319944933,4.81681325,2497.5,2496.7,7.16791728]
[1751319945116,6.872,2497.4,2497.0,7.16791728]
[1751319945317,6.872,2497.4,2496.9,7.36791728]
[1751319946211,6.672,2497.4,2496.9,7.16791728]
[1751319946412,8.22126646,2497.4,2496.8,7.16791728]
[1751319946618,4.00434056,2497.3,2496.8,7.16791728]
[1751319946796,4.00449276,2497.2,2496.7,10.0]
[1751319946993,4.00449276,2497.2,2496.7,2.088]